[Event "Titled Tuesday Blitz May 2 Early 2023"]
[White "Minko, Dmitry"]
[Black "Petrova, Irina"]
[WhiteFideId "24188468"]
[BlackFideId "14124122"]
[WhiteElo "2147"]
[BlackElo "2084"]
[Result "0-1"]
[Round "06"]
[TimeControl "180+2"]
[Date "2023.05.02"]
[WhiteClock "0:00:01"]
[BlackClock "0:00:24"]

1. e4 {[%clk 0:03:00]}  e5 {[%clk 0:03:00]} 2. Nf3 {[%clk 0:03:01]}  Nc6 {[%clk 0:03:00]} 3. d4 {[%clk 0:03:01]}  exd4 {[%clk 0:03:00]} 4. Nxd4 {[%clk 0:03:02]}  Nf6 {[%clk 0:02:59]} 5. Nc3 {[%clk 0:03:03]}  Bb4 {[%clk 0:02:58]} 6. Nxc6 {[%clk 0:03:03]}  bxc6 {[%clk 0:02:58]} 7. Bd3 {[%clk 0:03:04]}  O-O {[%clk 0:02:58]} 8. O-O {[%clk 0:03:03]}  d5 {[%clk 0:02:58]} 9. exd5 {[%clk 0:03:04]}  cxd5 {[%clk 0:02:59]} 10. Bg5 {[%clk 0:03:05]}  c6 {[%clk 0:02:58]} 11. Qf3 {[%clk 0:03:05]}  Be7 {[%clk 0:02:58]} 12. h3 {[%clk 0:03:04]}  h6 {[%clk 0:02:56]} 13. Bf4 {[%clk 0:03:04]}  Re8 {[%clk 0:02:52]} 14. Rfe1 {[%clk 0:03:03]}  Be6 {[%clk 0:02:52]} 15. Ne2 {[%clk 0:03:02]}  c5 {[%clk 0:02:50]} 16. c3 {[%clk 0:03:00]}  Bd6 {[%clk 0:02:45]} 17. Bxd6 {[%clk 0:02:56]}  Qxd6 {[%clk 0:02:46]} 18. Nf4 {[%clk 0:02:57]}  Rab8 {[%clk 0:02:44]} 19. b3 {[%clk 0:02:43]}  Bd7 {[%clk 0:02:32]} 20. Rad1 {[%clk 0:02:35]}  Bc6 {[%clk 0:02:28]} 21. Qg3 {[%clk 0:02:09]}  Rxe1+ {[%clk 0:02:14]} 22. Rxe1 {[%clk 0:02:09]}  Ne4 {[%clk 0:02:14]} 23. Qg4 {[%clk 0:01:49]}  Nf6 {[%clk 0:02:01]} 24. Qg3 {[%clk 0:01:42]}  Ne4 {[%clk 0:02:00]} 25. Bxe4 {[%clk 0:01:09]}  dxe4 {[%clk 0:02:01]} 26. Qe3 {[%clk 0:01:10]}  Rd8 {[%clk 0:01:54]} 27. h4 {[%clk 0:01:01]}  Qd2 {[%clk 0:01:53]} 28. Qe2 {[%clk 0:00:44]}  Qxf4 {[%clk 0:01:48]} 29. Qc4 {[%clk 0:00:39]}  Qxh4 {[%clk 0:01:40]} 30. Qxc5 {[%clk 0:00:38]}  Qf6 {[%clk 0:01:39]} 31. b4 {[%clk 0:00:35]}  Rd2 {[%clk 0:01:38]} 32. b5 {[%clk 0:00:28]}  Bxb5 {[%clk 0:01:33]} 33. Rxe4 {[%clk 0:00:28]}  Rd1+ {[%clk 0:01:29]} 34. Kh2 {[%clk 0:00:28]}  Qd6+ {[%clk 0:01:27]} 35. Re5 {[%clk 0:00:25]}  Qxc5 {[%clk 0:01:10]} 36. Rxc5 {[%clk 0:00:26]}  Bf1 {[%clk 0:01:09]} 37. Rc8+ {[%clk 0:00:21]}  Kh7 {[%clk 0:01:08]} 38. Rc7 {[%clk 0:00:22]}  Rc1 {[%clk 0:01:07]} 39. Rxa7 {[%clk 0:00:16]}  Rxc3 {[%clk 0:01:07]} 40. Rxf7 {[%clk 0:00:16]}  Rc2 {[%clk 0:01:07]} 41. a4 {[%clk 0:00:15]}  Ra2 {[%clk 0:01:07]} 42. Rf4 {[%clk 0:00:15]}  g5 {[%clk 0:01:00]} 43. Rb4 {[%clk 0:00:14]}  Rxf2 {[%clk 0:00:54]} 44. Kg1 {[%clk 0:00:12]}  Rf6 {[%clk 0:00:53]} 45. a5 {[%clk 0:00:11]}  Ba6 {[%clk 0:00:53]} 46. Rd4 {[%clk 0:00:08]}  Kg6 {[%clk 0:00:53]} 47. Kh2 {[%clk 0:00:08]}  h5 {[%clk 0:00:52]} 48. Kg3 {[%clk 0:00:08]}  h4+ {[%clk 0:00:52]} 49. Kh2 {[%clk 0:00:08]}  Kh5 {[%clk 0:00:44]} 50. Rd7 {[%clk 0:00:06]}  Rf5 {[%clk 0:00:42]} 51. Kh3 {[%clk 0:00:02]}  Rxa5 {[%clk 0:00:37]} 52. g4+ {[%clk 0:00:03]}  hxg3 {[%clk 0:00:34]} 53. Kxg3 {[%clk 0:00:02]}  Ra3+ {[%clk 0:00:34]} 54. Kh2 {[%clk 0:00:02]}  Kh4 {[%clk 0:00:30]} 55. Rh7+ {[%clk 0:00:01]}  Kg4 {[%clk 0:00:30]} 56. Rd7 {[%clk 0:00:02]}  Ra2+ {[%clk 0:00:30]} 57. Kg1 {[%clk 0:00:02]}  Kg3 {[%clk 0:00:27]} 58. Rd1 {[%clk 0:00:01]}  g4 {[%clk 0:00:24]} 59. Rd3+ {[%clk 0:00:01]}  Bxd3 {[%clk 0:00:24]} 60. Kh1 {[%clk 0:00:01]}  Ra1# {[%clk 0:00:24]} 0-1


[Site "https://www.chess.com"]

[Event "Titled Tuesday Blitz May 2 Early 2023"]
[White "Jimenez Almeida, Luis David"]
[Black "Szente Varga, Fruzsina"]
[WhiteFideId "22242244"]
[BlackFideId "712264"]
[WhiteElo "2245"]
[BlackElo "1994"]
[Result "1-0"]
[Round "06"]
[TimeControl "180+2"]
[Date "2023.05.02"]
[WhiteClock "0:01:19"]
[BlackClock "0:00:02"]

1. e4 {[%clk 0:03:00]}  Nf6 {[%clk 0:02:59]} 2. e5 {[%clk 0:02:58]}  Nd5 {[%clk 0:02:59]} 3. c4 {[%clk 0:02:58]}  Nb6 {[%clk 0:02:59]} 4. d4 {[%clk 0:02:58]}  d6 {[%clk 0:02:59]} 5. f4 {[%clk 0:02:58]}  g6 {[%clk 0:02:59]} 6. Nf3 {[%clk 0:02:59]}  Bg7 {[%clk 0:02:59]} 7. Nc3 {[%clk 0:02:59]}  dxe5 {[%clk 0:02:58]} 8. fxe5 {[%clk 0:02:58]}  O-O {[%clk 0:02:51]} 9. Be3 {[%clk 0:02:57]}  Bg4 {[%clk 0:02:51]} 10. Be2 {[%clk 0:02:57]}  Nc6 {[%clk 0:02:00]} 11. b3 {[%clk 0:02:47]}  e6 {[%clk 0:01:55]} 12. O-O {[%clk 0:02:44]}  Ne7 {[%clk 0:01:48]} 13. Ne4 {[%clk 0:02:40]}  Nf5 {[%clk 0:01:45]} 14. Bg5 {[%clk 0:02:37]}  Qd7 {[%clk 0:01:40]} 15. Nc5 {[%clk 0:02:11]}  Qc6 {[%clk 0:01:30]} 16. h3 {[%clk 0:02:10]}  h6 {[%clk 0:01:20]} 17. hxg4 {[%clk 0:02:08]}  Ng3 {[%clk 0:01:16]} 18. Be3 {[%clk 0:01:47]}  Nxf1 {[%clk 0:01:16]} 19. Qxf1 {[%clk 0:01:45]}  Nd7 {[%clk 0:01:16]} 20. Nxd7 {[%clk 0:01:43]}  Qxd7 {[%clk 0:01:16]} 21. Rd1 {[%clk 0:01:41]}  c6 {[%clk 0:01:14]} 22. Qe1 {[%clk 0:01:40]}  g5 {[%clk 0:01:07]} 23. Bd3 {[%clk 0:01:38]}  Rad8 {[%clk 0:00:45]} 24. Bf2 {[%clk 0:01:34]}  f5 {[%clk 0:00:24]} 25. gxf5 {[%clk 0:01:32]}  exf5 {[%clk 0:00:24]} 26. d5 {[%clk 0:01:28]}  cxd5 {[%clk 0:00:19]} 27. cxd5 {[%clk 0:01:28]}  Kh8 {[%clk 0:00:18]} 28. d6 {[%clk 0:01:25]}  Rde8 {[%clk 0:00:17]} 29. Bd4 {[%clk 0:01:22]}  g4 {[%clk 0:00:12]} 30. Nh4 {[%clk 0:01:22]}  Re6 {[%clk 0:00:03]} 31. Bxf5 {[%clk 0:01:18]}  Rxf5 {[%clk 0:00:02]} 32. Nxf5 {[%clk 0:01:19]} 1-0


[Site "https://www.chess.com"]

[Event "Titled Tuesday Blitz May 2 Early 2023"]
[White "Fathy, Elameir"]
[Black "Kubatko, Ivan"]
[WhiteFideId "10600396"]
[BlackFideId "24111473"]
[WhiteElo "2311"]
[BlackElo "2285"]
[Result "1-0"]
[Round "06"]
[TimeControl "180+2"]
[Date "2023.05.02"]
[WhiteClock "0:00:12"]
[BlackClock "0:00:03"]

1. d4 {[%clk 0:02:54]}  d5 {[%clk 0:03:00]} 2. c4 {[%clk 0:02:55]}  e6 {[%clk 0:03:00]} 3. Nf3 {[%clk 0:02:55]}  c5 {[%clk 0:02:59]} 4. cxd5 {[%clk 0:02:54]}  exd5 {[%clk 0:03:00]} 5. g3 {[%clk 0:02:55]}  Nc6 {[%clk 0:03:01]} 6. Bg2 {[%clk 0:02:56]}  Nf6 {[%clk 0:03:02]} 7. O-O {[%clk 0:02:56]}  Be7 {[%clk 0:03:02]} 8. dxc5 {[%clk 0:02:56]}  Bxc5 {[%clk 0:03:02]} 9. a3 {[%clk 0:02:57]}  O-O {[%clk 0:03:01]} 10. b4 {[%clk 0:02:56]}  Bb6 {[%clk 0:03:01]} 11. Nc3 {[%clk 0:02:57]}  Re8 {[%clk 0:02:56]} 12. Bg5 {[%clk 0:02:54]}  d4 {[%clk 0:02:51]} 13. Na4 {[%clk 0:02:46]}  Bf5 {[%clk 0:01:51]} 14. Ne1 {[%clk 0:02:22]}  h6 {[%clk 0:01:42]} 15. Bxf6 {[%clk 0:02:01]}  Qxf6 {[%clk 0:01:43]} 16. Nd3 {[%clk 0:01:59]}  Be4 {[%clk 0:01:32]} 17. Bxe4 {[%clk 0:01:54]}  Rxe4 {[%clk 0:01:33]} 18. Nac5 {[%clk 0:01:53]}  Re7 {[%clk 0:01:20]} 19. Rc1 {[%clk 0:01:53]}  Rae8 {[%clk 0:01:18]} 20. Nf4 {[%clk 0:01:53]}  Qd6 {[%clk 0:01:05]} 21. Re1 {[%clk 0:01:51]}  Ne5 {[%clk 0:00:50]} 22. Qb3 {[%clk 0:01:39]}  Rd8 {[%clk 0:00:30]} 23. Nfd3 {[%clk 0:01:32]}  Ng4 {[%clk 0:00:28]} 24. Nf4 {[%clk 0:01:21]}  Nf6 {[%clk 0:00:26]} 25. a4 {[%clk 0:00:52]}  g5 {[%clk 0:00:26]} 26. Nfd3 {[%clk 0:00:51]}  Rde8 {[%clk 0:00:24]} 27. Rc2 {[%clk 0:00:44]}  Nd5 {[%clk 0:00:23]} 28. a5 {[%clk 0:00:39]}  Bd8 {[%clk 0:00:18]} 29. Na4 {[%clk 0:00:33]}  b6 {[%clk 0:00:15]} 30. a6 {[%clk 0:00:31]}  Kg7 {[%clk 0:00:11]} 31. Qb2 {[%clk 0:00:29]}  Nf6 {[%clk 0:00:11]} 32. Rec1 {[%clk 0:00:27]}  Ne4 {[%clk 0:00:09]} 33. Rc6 {[%clk 0:00:27]}  Qd7 {[%clk 0:00:10]} 34. e3 {[%clk 0:00:24]}  Kg8 {[%clk 0:00:07]} 35. Qxd4 {[%clk 0:00:24]}  Qe6 {[%clk 0:00:05]} 36. Rxe6 {[%clk 0:00:23]}  Rxe6 {[%clk 0:00:06]} 37. Rc8 {[%clk 0:00:21]}  Bf6 {[%clk 0:00:05]} 38. Rxe8+ {[%clk 0:00:21]}  Rxe8 {[%clk 0:00:06]} 39. Qd7 {[%clk 0:00:21]}  Rd8 {[%clk 0:00:06]} 40. Qf5 {[%clk 0:00:18]}  Rxd3 {[%clk 0:00:05]} 41. Qxe4 {[%clk 0:00:19]}  Rd1+ {[%clk 0:00:04]} 42. Kg2 {[%clk 0:00:19]}  Kg7 {[%clk 0:00:05]} 43. Nxb6 {[%clk 0:00:18]}  Ra1 {[%clk 0:00:04]} 44. Nd7 {[%clk 0:00:17]}  Rxa6 {[%clk 0:00:03]} 45. Nxf6 {[%clk 0:00:17]}  Kxf6 {[%clk 0:00:03]} 46. b5 {[%clk 0:00:17]}  Rb6 {[%clk 0:00:03]} 47. Qd4+ {[%clk 0:00:15]}  Ke6 {[%clk 0:00:03]} 48. Qc4+ {[%clk 0:00:15]}  Ke7 {[%clk 0:00:02]} 49. h4 {[%clk 0:00:16]}  gxh4 {[%clk 0:00:02]} 50. Qc7+ {[%clk 0:00:16]}  Ke6 {[%clk 0:00:02]} 51. Qc4+ {[%clk 0:00:13]}  Ke7 {[%clk 0:00:02]} 52. Qxh4+ {[%clk 0:00:12]}  Kf8 {[%clk 0:00:01]} 53. Qd8+ {[%clk 0:00:12]}  Kg7 {[%clk 0:00:01]} 54. Qd4+ {[%clk 0:00:10]}  Kf8 {[%clk 0:00:02]} 55. Qc4 {[%clk 0:00:10]}  Re6 {[%clk 0:00:01]} 56. Qc5+ {[%clk 0:00:10]}  Kg7 {[%clk 0:00:01]} 57. Qxa7 {[%clk 0:00:11]}  Rf6 {[%clk 0:00:02]} 58. Qd4 {[%clk 0:00:11]}  Kg6 {[%clk 0:00:03]} 59. b6 {[%clk 0:00:12]} 1-0


[Site "https://www.chess.com"]

[Event "Titled Tuesday Blitz May 2 Early 2023"]
[White "Arpita, Mukherjee"]
[Black "Kohler, Aran"]
[WhiteFideId "5056403"]
[BlackFideId "1002856"]
[WhiteElo "2129"]
[BlackElo "2010"]
[Result "1-0"]
[Round "06"]
[TimeControl "180+2"]
[Date "2023.05.02"]
[WhiteClock "0:00:58"]
[BlackClock "0:00:33"]

1. e4 {[%clk 0:02:54]}  c5 {[%clk 0:02:59]} 2. Nf3 {[%clk 0:02:55]}  a6 {[%clk 0:03:00]} 3. c3 {[%clk 0:02:54]}  d6 {[%clk 0:02:59]} 4. d4 {[%clk 0:02:54]}  cxd4 {[%clk 0:03:00]} 5. cxd4 {[%clk 0:02:53]}  e6 {[%clk 0:03:00]} 6. Nc3 {[%clk 0:02:54]}  Be7 {[%clk 0:03:00]} 7. Bd3 {[%clk 0:02:54]}  Nf6 {[%clk 0:03:01]} 8. O-O {[%clk 0:02:55]}  Nbd7 {[%clk 0:02:59]} 9. e5 {[%clk 0:02:54]}  dxe5 {[%clk 0:02:58]} 10. dxe5 {[%clk 0:02:55]}  Ng4 {[%clk 0:02:52]} 11. Qe2 {[%clk 0:02:52]}  Qc7 {[%clk 0:02:49]} 12. Bf4 {[%clk 0:02:50]}  g5 {[%clk 0:02:47]} 13. Bg3 {[%clk 0:02:49]}  h5 {[%clk 0:02:44]} 14. Rac1 {[%clk 0:02:48]}  Qb8 {[%clk 0:02:42]} 15. h4 {[%clk 0:02:43]}  gxh4 {[%clk 0:02:40]} 16. Bf4 {[%clk 0:02:40]}  Rg8 {[%clk 0:02:37]} 17. Ne4 {[%clk 0:02:35]}  h3 {[%clk 0:02:34]} 18. g3 {[%clk 0:02:35]}  Ndxe5 {[%clk 0:02:24]} 19. Nxe5 {[%clk 0:02:30]}  h2+ {[%clk 0:02:22]} 20. Kh1 {[%clk 0:02:29]}  Nxe5 {[%clk 0:02:23]} 21. Rxc8+ {[%clk 0:02:30]}  Qxc8 {[%clk 0:02:22]} 22. Bxe5 {[%clk 0:02:29]}  Qc6 {[%clk 0:02:15]} 23. f3 {[%clk 0:02:08]}  h4 {[%clk 0:01:56]} 24. g4 {[%clk 0:01:59]}  f5 {[%clk 0:01:53]} 25. gxf5 {[%clk 0:01:48]}  Rg1+ {[%clk 0:01:52]} 26. Rxg1 {[%clk 0:01:46]}  hxg1=Q+ {[%clk 0:01:52]} 27. Kxg1 {[%clk 0:01:46]}  O-O-O {[%clk 0:01:45]} 28. f6 {[%clk 0:01:39]}  Qb6+ {[%clk 0:01:20]} 29. Kh2 {[%clk 0:01:34]}  Bf8 {[%clk 0:01:15]} 30. Qc2+ {[%clk 0:01:30]}  Kd7 {[%clk 0:01:12]} 31. f7 {[%clk 0:01:21]}  Rc8 {[%clk 0:00:45]} 32. Qd2 {[%clk 0:01:11]}  Ke7 {[%clk 0:00:37]} 33. Bd6+ {[%clk 0:01:02]}  Kxf7 {[%clk 0:00:36]} 34. Qf4+ {[%clk 0:01:03]}  Kg8 {[%clk 0:00:35]} 35. Nf6+ {[%clk 0:00:58]}  Kg7 {[%clk 0:00:33]} 36. Qg5+ {[%clk 0:00:59]}  Kf7 {[%clk 0:00:33]} 37. Qg6# {[%clk 0:00:58]} 1-0


[Site "https://www.chess.com"]

[Event "Titled Tuesday Blitz May 2 Early 2023"]
[White "Levitan, Caleb Levi"]
[Black "Eidelman, Gabriel"]
[WhiteFideId "14332620"]
[BlackFideId "30910544"]
[WhiteElo "1963"]
[BlackElo "2209"]
[Result "0-1"]
[Round "06"]
[TimeControl "180+2"]
[Date "2023.05.02"]
[WhiteClock "0:00:01"]
[BlackClock "0:00:11"]

1. e4 {[%clk 0:03:00]}  d6 {[%clk 0:03:00]} 2. d4 {[%clk 0:02:59]}  g6 {[%clk 0:03:00]} 3. Nc3 {[%clk 0:02:57]}  Bg7 {[%clk 0:03:01]} 4. Bf4 {[%clk 0:02:57]}  Nd7 {[%clk 0:02:56]} 5. Nf3 {[%clk 0:02:54]}  e5 {[%clk 0:02:55]} 6. Be3 {[%clk 0:02:49]}  Ngf6 {[%clk 0:02:52]} 7. h3 {[%clk 0:02:46]}  O-O {[%clk 0:02:52]} 8. Bc4 {[%clk 0:02:45]}  b6 {[%clk 0:02:37]} 9. O-O {[%clk 0:02:41]}  Bb7 {[%clk 0:02:36]} 10. d5 {[%clk 0:02:18]}  Nc5 {[%clk 0:02:33]} 11. Bxc5 {[%clk 0:02:17]}  bxc5 {[%clk 0:02:30]} 12. Nd2 {[%clk 0:01:55]}  Nh5 {[%clk 0:02:26]} 13. Be2 {[%clk 0:01:41]}  Nf4 {[%clk 0:02:25]} 14. Bf3 {[%clk 0:01:40]}  Bc8 {[%clk 0:02:13]} 15. Ne2 {[%clk 0:01:39]}  Nxe2+ {[%clk 0:02:06]} 16. Qxe2 {[%clk 0:01:34]}  f5 {[%clk 0:02:06]} 17. Kh1 {[%clk 0:01:17]}  Qh4 {[%clk 0:01:54]} 18. Rae1 {[%clk 0:01:05]}  Bh6 {[%clk 0:01:52]} 19. Qd3 {[%clk 0:00:20]}  Bxd2 {[%clk 0:01:39]} 20. Qxd2 {[%clk 0:00:20]}  f4 {[%clk 0:01:39]} 21. Kh2 {[%clk 0:00:15]}  h5 {[%clk 0:01:27]} 22. Qe2 {[%clk 0:00:11]}  Kf7 {[%clk 0:01:11]} 23. Qb5 {[%clk 0:00:04]}  Ke7 {[%clk 0:00:43]} 24. Qc6 {[%clk 0:00:04]}  Bd7 {[%clk 0:00:44]} 25. Qxc7 {[%clk 0:00:04]}  g5 {[%clk 0:00:40]} 26. g4 {[%clk 0:00:02]}  fxg3+ {[%clk 0:00:36]} 27. fxg3 {[%clk 0:00:02]}  Qxh3+ {[%clk 0:00:36]} 28. Kg1 {[%clk 0:00:03]}  Qxg3+ {[%clk 0:00:36]} 29. Bg2 {[%clk 0:00:03]}  Rf4 {[%clk 0:00:32]} 30. Rxf4 {[%clk 0:00:03]}  gxf4 {[%clk 0:00:31]} 31. Rf1 {[%clk 0:00:03]}  h4 {[%clk 0:00:31]} 32. Rf3 {[%clk 0:00:03]}  Qg4 {[%clk 0:00:26]} 33. Kf2 {[%clk 0:00:01]}  Rg8 {[%clk 0:00:23]} 34. Bh3 {[%clk 0:00:02]}  Qg1+ {[%clk 0:00:20]} 35. Ke2 {[%clk 0:00:02]}  Rg2+ {[%clk 0:00:14]} 36. Bxg2 {[%clk 0:00:01]}  Qxg2+ {[%clk 0:00:15]} 37. Rf2 {[%clk 0:00:02]}  Qxe4+ {[%clk 0:00:15]} 38. Kf1 {[%clk 0:00:02]}  Qh1+ {[%clk 0:00:13]} 39. Ke2 {[%clk 0:00:02]}  Qe4+ {[%clk 0:00:13]} 40. Kf1 {[%clk 0:00:02]}  Qxd5 {[%clk 0:00:14]} 41. Rg2 {[%clk 0:00:02]}  Qd1+ {[%clk 0:00:14]} 42. Kf2 {[%clk 0:00:03]}  Qxc2+ {[%clk 0:00:15]} 43. Kf3 {[%clk 0:00:03]}  Qd3+ {[%clk 0:00:15]} 44. Kf2 {[%clk 0:00:03]}  Qe3+ {[%clk 0:00:16]} 45. Kf1 {[%clk 0:00:03]}  Qc1+ {[%clk 0:00:16]} 46. Kf2 {[%clk 0:00:04]}  Qxb2+ {[%clk 0:00:17]} 47. Kg1 {[%clk 0:00:03]}  Qb1+ {[%clk 0:00:12]} 48. Kh2 {[%clk 0:00:04]}  Qh7 {[%clk 0:00:11]} 49. Rd2 {[%clk 0:00:03]}  Qg6 {[%clk 0:00:10]} 50. Rg2 {[%clk 0:00:02]}  Qf6 {[%clk 0:00:11]} 51. Rb2 {[%clk 0:00:02]}  f3 {[%clk 0:00:09]} 52. Rb7 {[%clk 0:00:02]}  Qe6 {[%clk 0:00:10]} 53. Rxa7 {[%clk 0:00:01]}  Qh3+ {[%clk 0:00:10]} 54. Kg1 {[%clk 0:00:01]}  Qg2# {[%clk 0:00:11]} 0-1


[Site "https://www.chess.com"]

[Event "Titled Tuesday Blitz May 2 Early 2023"]
[White "Sanchez, German"]
[Black "Womacka, Mathias"]
[WhiteFideId "4403959"]
[BlackFideId "4611390"]
[WhiteElo "1816"]
[BlackElo "2377"]
[Result "0-1"]
[Round "06"]
[TimeControl "180+2"]
[Date "2023.05.02"]
[WhiteClock "0:00:03"]
[BlackClock "0:00:19"]

1. e4 {[%clk 0:02:58]}  c5 {[%clk 0:02:59]} 2. Nf3 {[%clk 0:02:58]}  d6 {[%clk 0:03:00]} 3. d4 {[%clk 0:02:58]}  cxd4 {[%clk 0:03:00]} 4. Nxd4 {[%clk 0:02:59]}  Nf6 {[%clk 0:03:00]} 5. Nc3 {[%clk 0:03:00]}  a6 {[%clk 0:03:00]} 6. Be3 {[%clk 0:02:57]}  e5 {[%clk 0:02:59]} 7. Nb3 {[%clk 0:02:56]}  Be7 {[%clk 0:02:59]} 8. f3 {[%clk 0:02:52]}  Be6 {[%clk 0:02:57]} 9. Qd2 {[%clk 0:02:50]}  O-O {[%clk 0:02:54]} 10. O-O-O {[%clk 0:02:50]}  Nbd7 {[%clk 0:02:55]} 11. g4 {[%clk 0:02:49]}  Qc7 {[%clk 0:02:52]} 12. g5 {[%clk 0:02:48]}  Nh5 {[%clk 0:02:52]} 13. h4 {[%clk 0:02:46]}  b5 {[%clk 0:02:47]} 14. Bh3 {[%clk 0:02:31]}  Nb6 {[%clk 0:02:35]} 15. Bg4 {[%clk 0:02:29]}  Nc4 {[%clk 0:02:31]} 16. Qf2 {[%clk 0:02:21]}  Nxe3 {[%clk 0:02:23]} 17. Qxe3 {[%clk 0:01:58]}  Nf4 {[%clk 0:02:21]} 18. Ne2 {[%clk 0:01:06]}  Nxe2+ {[%clk 0:02:05]} 19. Qxe2 {[%clk 0:01:04]}  a5 {[%clk 0:02:05]} 20. Kb1 {[%clk 0:00:57]}  a4 {[%clk 0:01:59]} 21. Nc1 {[%clk 0:00:57]}  a3 {[%clk 0:01:59]} 22. b3 {[%clk 0:00:49]}  Rac8 {[%clk 0:01:41]} 23. Qd2 {[%clk 0:00:47]}  Rfd8 {[%clk 0:01:34]} 24. Nd3 {[%clk 0:00:42]}  d5 {[%clk 0:01:34]} 25. Bxe6 {[%clk 0:00:20]}  fxe6 {[%clk 0:01:35]} 26. h5 {[%clk 0:00:18]}  dxe4 {[%clk 0:01:27]} 27. fxe4 {[%clk 0:00:18]}  Rd4 {[%clk 0:01:26]} 28. g6 {[%clk 0:00:16]}  Rxe4 {[%clk 0:01:22]} 29. h6 {[%clk 0:00:14]}  hxg6 {[%clk 0:01:03]} 30. hxg7 {[%clk 0:00:13]}  g5 {[%clk 0:01:00]} 31. Rh2 {[%clk 0:00:08]}  Kxg7 {[%clk 0:00:49]} 32. Rdh1 {[%clk 0:00:06]}  Rh4 {[%clk 0:00:43]} 33. Rxh4 {[%clk 0:00:06]}  gxh4 {[%clk 0:00:44]} 34. Qg2+ {[%clk 0:00:06]}  Kf7 {[%clk 0:00:44]} 35. Rg1 {[%clk 0:00:06]}  Bf6 {[%clk 0:00:36]} 36. Qg6+ {[%clk 0:00:05]}  Ke7 {[%clk 0:00:37]} 37. Qh7+ {[%clk 0:00:05]}  Kd6 {[%clk 0:00:35]} 38. Qe4 {[%clk 0:00:05]}  Qc3 {[%clk 0:00:33]} 39. Rd1 {[%clk 0:00:05]}  Kc7 {[%clk 0:00:28]} 40. Rc1 {[%clk 0:00:03]}  Kb6 {[%clk 0:00:26]} 41. Qg4 {[%clk 0:00:03]}  e4 {[%clk 0:00:23]} 42. Qxe6+ {[%clk 0:00:03]}  Rc6 {[%clk 0:00:21]} 43. Qxe4 {[%clk 0:00:03]}  Qa1# {[%clk 0:00:19]} 0-1


[Site "https://www.chess.com"]

[Event "Titled Tuesday Blitz May 2 Early 2023"]
[White "Liu, Casper"]
[Black "Kornyukov, Alexey"]
[WhiteFideId "1454153"]
[BlackFideId "4150457"]
[WhiteElo "2221"]
[BlackElo "2352"]
[Result "1-0"]
[Round "06"]
[TimeControl "180+2"]
[Date "2023.05.02"]
[WhiteClock "0:02:20"]
[BlackClock "0:00:21"]

1. e4 {[%clk 0:03:00]}  c5 {[%clk 0:02:59]} 2. a3 {[%clk 0:02:58]}  Nc6 {[%clk 0:02:57]} 3. b4 {[%clk 0:02:56]}  cxb4 {[%clk 0:02:56]} 4. d4 {[%clk 0:02:56]}  d5 {[%clk 0:02:53]} 5. axb4 {[%clk 0:02:52]}  dxe4 {[%clk 0:02:50]} 6. c3 {[%clk 0:02:52]}  Nf6 {[%clk 0:02:38]} 7. b5 {[%clk 0:02:50]}  Nb8 {[%clk 0:02:32]} 8. Bf4 {[%clk 0:02:48]}  e6 {[%clk 0:02:24]} 9. Bxb8 {[%clk 0:02:45]}  Rxb8 {[%clk 0:02:20]} 10. Rxa7 {[%clk 0:02:45]}  Bd6 {[%clk 0:02:14]} 11. Nd2 {[%clk 0:02:45]}  O-O {[%clk 0:01:56]} 12. Qc2 {[%clk 0:02:43]}  Nd5 {[%clk 0:01:36]} 13. Nxe4 {[%clk 0:02:40]}  f5 {[%clk 0:01:25]} 14. Nxd6 {[%clk 0:02:38]}  Qxd6 {[%clk 0:01:20]} 15. Nf3 {[%clk 0:02:36]}  Qb6 {[%clk 0:00:38]} 16. Ra1 {[%clk 0:02:31]}  Bd7 {[%clk 0:00:39]} 17. c4 {[%clk 0:02:31]}  Nb4 {[%clk 0:00:38]} 18. Qb3 {[%clk 0:02:30]}  Qd6 {[%clk 0:00:31]} 19. c5 {[%clk 0:02:28]}  Qd5 {[%clk 0:00:29]} 20. Qxb4 {[%clk 0:02:28]}  Qe4+ {[%clk 0:00:29]} 21. Be2 {[%clk 0:02:27]}  b6 {[%clk 0:00:25]} 22. c6 {[%clk 0:02:27]}  Be8 {[%clk 0:00:24]} 23. Ra2 {[%clk 0:02:21]}  Bh5 {[%clk 0:00:21]} 24. O-O {[%clk 0:02:20]} 1-0


[Site "https://www.chess.com"]

[Event "Titled Tuesday Blitz May 2 Early 2023"]
[White "Melikhov, Evgeny V."]
[Black "Antonio, Jorge Carlos"]
[WhiteFideId "4122046"]
[BlackFideId "113190"]
[WhiteElo "2158"]
[BlackElo "2247"]
[Result "1-0"]
[Round "06"]
[TimeControl "180+2"]
[Date "2023.05.02"]
[WhiteClock "0:00:09"]
[BlackClock "0:00:01"]

1. d4 {[%clk 0:03:00]}  d5 {[%clk 0:02:17]} 2. c4 {[%clk 0:02:57]}  c6 {[%clk 0:02:12]} 3. Nc3 {[%clk 0:02:57]}  dxc4 {[%clk 0:02:09]} 4. e4 {[%clk 0:02:56]}  b5 {[%clk 0:02:01]} 5. a4 {[%clk 0:02:55]}  Qb6 {[%clk 0:02:00]} 6. axb5 {[%clk 0:02:40]}  cxb5 {[%clk 0:01:56]} 7. b3 {[%clk 0:02:40]}  e6 {[%clk 0:01:46]} 8. bxc4 {[%clk 0:02:37]}  Bb4 {[%clk 0:01:42]} 9. Bb2 {[%clk 0:02:28]}  Nf6 {[%clk 0:01:38]} 10. c5 {[%clk 0:02:19]}  Qb7 {[%clk 0:01:34]} 11. f3 {[%clk 0:02:11]}  Nc6 {[%clk 0:01:31]} 12. Kf2 {[%clk 0:01:41]}  O-O {[%clk 0:01:25]} 13. Nxb5 {[%clk 0:01:33]}  e5 {[%clk 0:01:21]} 14. Nd6 {[%clk 0:01:30]}  Qc7 {[%clk 0:01:16]} 15. Nb5 {[%clk 0:01:00]}  Qe7 {[%clk 0:01:09]} 16. Ne2 {[%clk 0:00:53]}  exd4 {[%clk 0:01:05]} 17. Nbxd4 {[%clk 0:00:44]}  Bxc5 {[%clk 0:01:03]} 18. Rc1 {[%clk 0:00:39]}  Rd8 {[%clk 0:00:56]} 19. Rxc5 {[%clk 0:00:38]}  Qxc5 {[%clk 0:00:55]} 20. Qc2 {[%clk 0:00:29]}  Qxc2 {[%clk 0:00:51]} 21. Nxc2 {[%clk 0:00:29]}  Rd2 {[%clk 0:00:46]} 22. Bxf6 {[%clk 0:00:29]}  Rxc2 {[%clk 0:00:41]} 23. Bg5 {[%clk 0:00:23]}  Nd4 {[%clk 0:00:37]} 24. Ke3 {[%clk 0:00:21]}  Nxe2 {[%clk 0:00:36]} 25. Bxe2 {[%clk 0:00:21]}  f6 {[%clk 0:00:33]} 26. Bf4 {[%clk 0:00:21]}  g5 {[%clk 0:00:32]} 27. Bg3 {[%clk 0:00:20]}  a5 {[%clk 0:00:31]} 28. Bd3 {[%clk 0:00:19]}  Rc3 {[%clk 0:00:31]} 29. Kd2 {[%clk 0:00:18]}  Ra3 {[%clk 0:00:30]} 30. Bc4+ {[%clk 0:00:18]}  Kg7 {[%clk 0:00:30]} 31. Rd1 {[%clk 0:00:18]}  Ba6 {[%clk 0:00:28]} 32. Bxa6 {[%clk 0:00:16]}  Rxa6 {[%clk 0:00:28]} 33. Kc2 {[%clk 0:00:17]}  Ra2+ {[%clk 0:00:28]} 34. Kb3 {[%clk 0:00:17]}  Rxg2 {[%clk 0:00:28]} 35. Rd7+ {[%clk 0:00:17]}  Kg6 {[%clk 0:00:28]} 36. Ka4 {[%clk 0:00:17]}  Ra2+ {[%clk 0:00:26]} 37. Kb5 {[%clk 0:00:17]}  Ra8 {[%clk 0:00:25]} 38. Rd6 {[%clk 0:00:17]}  a4 {[%clk 0:00:24]} 39. e5 {[%clk 0:00:17]}  Kf7 {[%clk 0:00:16]} 40. Rxf6+ {[%clk 0:00:17]}  Kg7 {[%clk 0:00:16]} 41. Rc6 {[%clk 0:00:15]}  a3 {[%clk 0:00:16]} 42. e6 {[%clk 0:00:15]}  Rb2+ {[%clk 0:00:15]} 43. Kc4 {[%clk 0:00:12]}  a2 {[%clk 0:00:15]} 44. Be5+ {[%clk 0:00:12]}  Kg6 {[%clk 0:00:11]} 45. Bxb2 {[%clk 0:00:12]}  Rb8 {[%clk 0:00:08]} 46. Bd4 {[%clk 0:00:12]}  Ra8 {[%clk 0:00:07]} 47. Kd5 {[%clk 0:00:11]}  Ra4 {[%clk 0:00:06]} 48. Be5 {[%clk 0:00:10]}  Ra5+ {[%clk 0:00:06]} 49. Rc5 {[%clk 0:00:11]}  Ra4 {[%clk 0:00:05]} 50. e7 {[%clk 0:00:11]}  Ra8 {[%clk 0:00:04]} 51. Ke6 {[%clk 0:00:10]}  Ra6+ {[%clk 0:00:03]} 52. Kd7 {[%clk 0:00:09]}  Ra7+ {[%clk 0:00:02]} 53. Rc7 {[%clk 0:00:09]}  Ra5 {[%clk 0:00:02]} 54. e8=Q+ {[%clk 0:00:09]}  Kf5 {[%clk 0:00:01]} 55. Qe6# {[%clk 0:00:09]} 1-0


[Site "https://www.chess.com"]